Cogmind - Beta 15 @@@ ROGUE MODE // 2025.06.09 @ 21:37:14 Player: Cracklepappy Result: Destroyed by D-53 Grenadier with Mini Grenade Launcher Performance ------------- Evolutions (0) 0 Regions Visited (2) 400 Robots Destroyed (36) 180 Value Destroyed (805) 805 Prototype IDs (0) 0 Alien Tech Used (0) 0 Bonus (0) 0 TOTAL SCORE: 1385 Bonus ------- None Cogmind --------- Core Integrity 0/250 Matter 270/300 Energy 70/250 System Corruption 0% Temperature Cool (0) Movement Treading (160) Location -10/Mines Parts ------- > --- POWER (1) -------- Ion Engine > --- PROPULSION (2) --- Light Treads Light Treads > --- UTILITY (2) ------ Large Storage Unit Core Shielding > --- WEAPON (2) ------- Medium Laser Light Assault Rifle > --- INVENTORY (15) --- Light Treads Light Treads Compact Wheel Improved Heat Sink Huge Storage Unit Large Matter Pod (150) Structural Scanner Seismic Detector Small Laser Light Assault Rifle Light Assault Rifle Mining Laser Peak State ------------ > --- POWER ------------ Light Ion Engine > --- PROPULSION ------- Light Treads Light Treads > --- UTILITY ---------- Medium Storage Unit Improved Terrain Scanner > --- WEAPON ----------- Small Laser Light Assault Rifle > --- INVENTORY -------- Ion Engine Light Ion Engine Light Treads Aluminum Leg Aluminum Leg Wheel Compact Wheel Seismic Detector Small Laser Mining Laser [Rating: 10] Favorites ----------- Power Light Ion Engine Engine Light Ion Engine Propulsion Light Treads Treads Light Treads Utility Large Storage Unit Device Improved Heat Sink Storage Large Storage Unit Protection Core Shielding Weapon Light Assault Rifle Energy Gun Small Laser Energy Cannon Beam Cannon Ballistic Gun Light Assault Rifle Build | -11 -10 -10 ------- Run | Yrd Mat Min Slots Evolved . | . . . Power . | . . . Propulsion . | . . . Utility . | . . . Weapon . | . . . Parts Attached 28 | 8 14 6 Power 5 | 1 3 1 Engine 5 | 1 3 1 Core . | . . . Reactor . | . . . Propulsion 4 | 2 1 1 Treads 4 | 2 1 1 Leg . | . . . Wheel . | . . . Hover . | . . . Flight . | . . . Utility 10 | 3 5 2 Device 4 | 2 1 1 Storage 5 | 1 3 1 Processor . | . . . Hackware . | . . . Protection 1 | . 1 . Artifact . | . . . Weapon 9 | 2 5 2 Energy Gun 3 | 1 . 2 Energy Cannon 1 | . 1 . Ballistic Gun 5 | 1 4 . Ballistic Cannon . | . . . Launcher . | . . . Special Weapon . | . . . Impact Weapon . | . . . Slashing Weapon . | . . . Piercing Weapon . | . . . Special Melee Weapon . | . . . Unidentified Prototypes . | . . . Parts Lost 6 | . 3 3 Power 3 | . 2 1 Propulsion 1 | . . 1 Utility . | . . . Weapon 2 | . 1 1 Highest Loss Streak 3 | . 1 3 To Critical Strikes . | . . . Average Backups 12 | 4 12 15 Power . | . 1 1 Propulsion 4 | 2 4 4 Utility 2 | . 2 5 Weapon 3 | 1 3 5 Tool/Special . | . . . Unused Backups 15 | . 8 7 Power . | . . . Propulsion 5 | . 3 2 Utility 3 | . 1 2 Weapon 7 | . 4 3 Tool/Special . | . . . Average Slot Usage (%) 99 | . 99 100 Engine 13 | . 13 14 Treads 27 | . 27 28 Device 6 | . 7 3 Storage 14 | . 14 14 Protection 7 | . 6 10 Energy Gun 4 | . 2 12 Energy Cannon 8 | . 9 . Ballistic Gun 15 | . 15 15 Peak Build Rating 10 | 9 10 8 Average Rating 8 | 5 8 7 On Entrance 5 | . 9 8 Naked Turns . | . . . Heaviest Build 86 | 11 86 27 Greatest Support 40 | 40 40 40 Greatest Overweight (x) 2 | . 2 . Average Overweight (x) . | . . . Largest Inventory Capacity 25 | 8 25 25 Average Capacity 12 | 7 13 15 Most Carried 17 | 8 17 15 Average Carried 12 | 4 12 14 Final Capacity 15 | 8 15 15 Final Carried 15 | 8 15 12 Class Distribution -------------------- 100% | Mutant Dominant Class ---------------- Mutant | -10/Materials Mutant | -10/Mines Resources | -11 -10 -10 ----------- Run | Yrd Mat Min Matter Collected 752 | 281 397 74 Remotely . | . . . Salvage Created 1205 | 148 954 103 Parts 74 | 8 63 3 Haulers Intercepted 2 | . 2 . Recyclers Shooed . | . . . Parts Field Recycled . | . . . Retrieved Matter . | . . . Parts Self-Destructed . | . . . Prevented . | . . . Kills | -11 -10 -10 ------- Run | Yrd Mat Min Combat Hostiles Destroyed 27 | . 25 2 Guns 16 | . 15 1 Cannons 10 | . 10 . AOE 1 | . . 1 Classes Destroyed 7 | 2 5 . Worker 1 | . 1 . Tunneler 3 | 3 . . Hauler 2 | . 2 . Recycler 1 | 1 . . Watcher 2 | . 2 . Swarmer 9 | . 9 . Grunt 18 | . 16 2 Best Kill Streak 6 | 3 6 2 Combat Bots Only 3 | . 3 2 Max Kills in Single Turn 1 | 1 1 1 Gunslinging . | . . . Exploded 1 | . . 1 Melee . | . . . Uniques/NPCs Destroyed . | . . . Combat | -11 -10 -10 -------- Run | Yrd Mat Min Hostile Shots Fired 112 | . 94 18 Missed 20 | . 19 1 Hits 92 | . 75 17 Projectile 92 | . 75 17 AOE 6 | . . 6 Critical Strikes 2 | . 1 1 Actively Blocked 1 | . . 1 Damage Taken 1196 | . 768 428 Core 253 | . 130 123 Absorbed by Shields . | . . . Redirected to Shielding 30 | . 4 26 Regen/Repaired (Parts) 186 | . 186 . Core Remaining (%) 100 | 100 . . Volleys Fired 114 | 11 93 10 Largest 2 | 2 2 2 Hottest 80 | 60 80 60 Shots Fired 228 | 22 186 20 Gun 169 | 22 127 20 Cannon 59 | . 59 . Launcher . | . . . Special . | . . . Kinetic 117 | 11 96 10 Thermal 101 | 11 90 . Explosive . | . . . Electromagnetic 10 | . . 10 Robot Hit Streak 28 | 11 28 16 Robot Miss Streak 9 | 3 9 2 Penetration Max . | . . . Secondary Targets . | . . . Shots Hit Robots 156 | 18 121 17 Core Hits 66 | 8 52 6 Critical Kills 1 | . 1 . Critical Parts Destroyed . | . . . Critical Strikes 2 | . 1 1 Destroy 1 | . 1 . Corrupt 1 | . . 1 Melee Attacks . | . . . Impact . | . . . Slashing . | . . . Piercing . | . . . Sneak Attacks . | . . . Combat Hostiles . | . . . Follow-up Attacks . | . . . Damage Inflicted 1828 | 175 1454 199 Guns 1088 | 175 750 163 Cannons 664 | . 664 . Explosions 32 | . . 32 Melee . | . . . Ramming 44 | . 40 4 Kinetic 680 | 67 550 63 Thermal 1004 | 108 864 32 Explosive . | . . . Electromagnetic 100 | . . 100 Impact . | . . . Slashing . | . . . Piercing . | . . . Highest Corruption . | . . . Average Corruption . | . . . Corruption Purged . | . . . Corruption Blocked . | . . . Overload Shots . | . . . Overflow Damage . | . . . Projectiles . | . . . Explosions . | . . . Melee . | . . . Knockbacks . | . . . Impact . | . . . Kinetic . | . . . Secondary . | . . . Self-Inflicted Damage 29 | . . 29 Shots 1 | . . 1 Rammed 8 | . 7 1 Targets Rammed 8 | . 7 1 Kicked . | . . . Crushed . | . . . Highest Temperature 147 | 40 147 136 Average Temperature 40 | 14 39 66 Received Heat Transfer 423 | . 330 93 Siege Activations . | . . . Martial Activations . | . . . Shielding Activations . | . . . Robots Disrupted . | . . . Combat Hostiles . | . . . Robots Corrupted . | . . . Combat Hostiles . | . . . Parts Fried 1 | . . 1 Impact Corruptions . | . . . Robots Melted . | . . . Combat Hostiles . | . . . Parts Melted 3 | . 3 . Heat Transferred 2106 | 250 1856 . Parts Sabotaged . | . . . Parts Stolen . | . . . Parts Stripped . | . . . Power Chain Reactions 1 | . . 1 Alert | -11 -10 -10 ------- Run | Yrd Mat Min Maximum Alert Level 1 | . 1 . Low Security (%) 62 | 100 52 100 Level 1 37 | . 47 . Level 2 . | . . . Level 3 . | . . . Level 4 . | . . . Level 5 . | . . . High Security . | . . . Max Security . | . . . Peak Influence 290 | 5 290 102 Initial 102 | . . 102 Average 149 | . 184 34 Influence Increases 979 | 20 874 85 Destroy 0b10 Robot/C 540 | . 500 40 Destroy 0b10 Robot/NC 45 | 20 25 . Destroy Leader 138 | . 128 10 Successful Hack 8 | . 8 . Select Force Hacks 60 | . 60 . Destroy Structure 8 | . 3 5 Partial Spotted 15 | . 15 . Lose Combat Pursuer 165 | . 135 30 Influence Decreases 979 | 20 612 347 Entered New Map 160 | . . 160 Time Decay 767 | 20 582 165 Lost Part 52 | . 30 22 Squads Dispatched 8 | . 8 . Investigation 5 | . 5 . Extermination . | . . . Reinforcement 3 | . 3 . Assault . | . . . Garrison . | . . . Intercept . | . . . Searches Triggered . | . . . Construction Impeded . | . . . Haulers Reinforced . | . . . Active Scanning Responses . | . . . Cargo Convoy Interrupts . | . . . Stealth | -11 -10 -10 --------- Run | Yrd Mat Min Distress Signals 4 | . 4 . Communications Jammed . | . . . Distress Signals . | . . . Times Spotted 56 | . 51 5 Peak Tracking Total 5 | . 5 2 Tactical Retreats 6 | . 5 1 Traps | -11 -10 -10 ------- Run | Yrd Mat Min Traps Triggered 2 | . 2 . Indirectly . | . . . Trap Hack Attempts . | . . . Triggered . | . . . Disarmed . | . . . Reprogrammed . | . . . Reused . | . . . Traps Extracted . | . . . Installed . | . . . Triggered . | . . . Machines | -11 -10 -10 ---------- Run | Yrd Mat Min Machines Disabled . | . . . Max in Single Turn . | . . . Machines Repaired . | . . . Machines Dismantled . | . . . Machines Sabotaged . | . . . Overloaded Fab Kills . | . . . Hacking | -11 -10 -10 --------- Run | Yrd Mat Min Machines Accessed 6 | . 6 . Terminals 3 | . 3 . Fabricators . | . . . Repair Stations 1 | . 1 . Recycling Units 2 | . 2 . Scanalyzers . | . . . Garrison Access . | . . . Total Hacks 13 | . 13 . Successful 6 | . 6 . Failed 7 | . 7 . Catastrophic 3 | . 3 . Database Lockouts . | . . . Manual 9 | . 9 . Terminals 5 | . 5 . Fabricators . | . . . Repair Stations 4 | . 4 . Recycling Units 4 | . 4 . Scanalyzers . | . . . Garrison Access . | . . . Terminal Hacks . | . . . Fabricator Hacks . | . . . Repair Station Hacks 4 | . 4 . Scan Component 2 | . 2 . Repair 2 | . 2 . Recycling Unit Hacks . | . . . Scanalyzer . | . . . Garrison Access Hacks . | . . . Unauthorized Hacks 2 | . 2 . Terminals . | . . . Fabricators . | . . . Repair Stations . | . . . Recycling Units 2 | . 2 . Tunnel 2 | . 2 . Scanalyzers . | . . . Garrison Access . | . . . Data Cores Recovered . | . . . Used . | . . . Hacking Detections 5 | . 5 . Full Trace Events 1 | . 1 . Feedback Events . | . . . Feedback Blocked . | . . . Robot Schematics Acquired . | . . . Robots Built . | . . . Authchips . | . . . Time . | . . . Total Robot Build Rating . | . . . Part Schematics Acquired . | . . . Parts Built . | . . . Authchips . | . . . Time . | . . . Total Part Build Rating . | . . . Parts Repaired 2 | . 2 . Time 52 | . 52 . Parts Recycled . | . . . Recycled Matter . | . . . Retrieved Matter . | . . . Retrieved Components . | . . . Parts Scanalyzed . | . . . Part Schematics Acquired . | . . . Parts Damaged . | . . . Bothacking | -11 -10 -10 ------------ Run | Yrd Mat Min Used RIF Installer . | . . . Robots Hacked . | . . . Non-combat . | . . . Combat . | . . . Robot Hacks Applied . | . . . Relay Couplers Released . | . . . Fabnet Peak Effective % . | . . . Robots Rewired . | . . . Allies Hacked . | . . . Hacks Repelled . | . . . Allies | -11 -10 -10 -------- Run | Yrd Mat Min Total Allies . | . . . Largest Group . | . . . Highest-Rated Group . | . . . Highest-Rated Ally . | . . . Total Orders . | . . . Ally Attacks . | . . . Total Damage . | . . . Kills . | . . . Allies Corrupted . | . . . Allies Melted . | . . . Intel | -11 -10 -10 ------- Run | Yrd Mat Min Active Infowar (turns) 792 | 97 592 103 Terrain 594 | 2 592 . Seismic 198 | 95 . 103 Robot Analysis Total . | . . . Derelict Logs Recovered 1 | . . 1 Drone Launches . | . . . Drone Recoveries . | . . . Exploration | -11 -10 -10 ------------- Run | Yrd Mat Min Turns Passed 3207 | 237 2517 453 Spaces Moved 1628 | 119 1274 235 Core 3 | 3 . . Treads 1625 | 116 1274 235 Legs . | . . . Wheels . | . . . Hover . | . . . Flight . | . . . Fastest Speed 50 | 50 160 160 Average Speed 160 | 157 160 160 Slowest Speed 320 | 160 320 160 Overloaded Moves . | . . . Propulsion Burnouts . | . . . Robots Hopped . | . . . Potential Cave-ins . | . . . Cave-ins Triggered . | . . . Exploration Rate (%) 48 | 7 99 38 Regions Visited 2 Branch Regions 1 Pre-discovered Areas 2 | . 2 . Known Exits Taken . | . . . Unknown Exits Taken 2 | 1 1 . Scrap Searched 1 | . . 1 Spaces Dug . | . . . Terrain Destroyed 5 | . . 5 Melee . | . . . Projectile . | . . . AOE 5 | . . 5 Terrain Rammed . | . . . Walls Destroyed . | . . . Machines Disabled . | . . . Actions | -11 -10 -10 --------- Run | Yrd Mat Min Total 2019 | 145 1583 291 Wait 186 | . 152 34 Move 1626 | 118 1273 235 Hop . | . . . Pick Up 31 | 8 23 . Fast Attach 11 | 7 4 . Attach 5 | . 2 3 Detach . | . . . Swap 18 | 1 10 7 Drop 20 | . 19 1 Fire 114 | 11 93 10 Melee . | . . . Ram . | . . . Kick . | . . . Crush 8 | . 7 1 Escape Stasis . | . . . Rewire . | . . . Trap . | . . . Miscellaneous . | . . . Route ------- -11/Scrapyard -10/Materials (discovered 5 exits: [*Mat x3] / [*Min] / [*Sub]) -10/Mines (discovered 1 exit: [*Sub]) History --------- Turn | Location | Event 19 | -11/Scrapyard | Discovered new exit (range 16) 238 | -11/Scrapyard | Entered Materials 314 | -10/Materials | Build established: Mutant 562 | -10/Materials | Discovered new exit (range 13) 668 | -10/Materials | Discovered new exit (range 4) 689 | -10/Materials | Discovered new exit (range 15) 874 | -10/Materials | Discovered new exit (range 10) 1020 | -10/Materials | Repaired Lgt. Treads 1047 | -10/Materials | Repaired Lgt. Treads 1469 | -10/Materials | Discovered new exit (range 6) 2475 | -10/Materials | Core integrity fell below 50% 2755 | -10/Materials | Entered Mines 2760 | -10/Mines | Learned Materials emergency access door positions 2829 | -10/Mines | Assembled infested the area 2834 | -10/Mines | Assisted by a Guerilla fighting off Assembled 2994 | -10/Mines | Discovered new exit (range 9) 3202 | -10/Mines | Core integrity fell below 20% 3208 | -10/Mines | Destroyed by D-53 Grenadier with Mini Grenade Launcher Last Messages --------------- 02895_ T-07 Excavator is excavating. 02949_ Imp. Heat Sink fried. 02949_ G-47 Trooper destroyed. 02955_ Chain reaction triggered in Ion Engine. 02955_ G-34 Mercenary destroyed. 02957_ Acquired 29 matter. 02994_ EXIT=FOUND 03031_ K-01 Serf collects debris. 03082_ Acquired 2 matter. 03083_ K-01 Serf collects debris. 03166_ Acquired 1 matter. 03201_ Slammed into R-06 Scavenger. 03201_ R-06 Scavenger destroyed. 03203_ Lgt. Ion Engine destroyed. 03203_ EM Pulse Gun destroyed. 03204_ The unstable cave ceiling collapses. 03204_ K-01 Serf crushed by falling debris. 03204_ K-01 Serf destroyed. 03205_ Lgt. Treads destroyed. 03208_ The unstable cave ceiling collapses. Map ----- +----------------------------------------------------+ | ???## ##???????## #???????????????????? | | ???# #????????#### #???????????????????? | | ???# #???######??#### ##???????????????????? | | ???# #??## ####### #????????????????????? | | ???# #??# ## #????????????????????? | | ???# #??## ##????????????????????? | | ???# ##?## ##?????????????????????? | | ??## ### ##??????????????????????? | | ??# ###???????????????????????? | | ??# ##?????????????????????????? | | ??## ## #??????????????????????????? | | ???## #### #??????????????????????????? | | ????## #??## ##??????????????????????????? | | ????## #???# #???????????????????????????? | | ???## ###### #???????????????????????????? | | ???# ## #???????????????????????????? | | ???# ### ####????????????????????????? | | ???## #?# ### ##???????????????????????? | | ????## #?# #?## #????##?????????????????? | | ?????# #?# #??## #?### ??###?????? ??????? | | ?????# #?# #???## ## #??# ##?? ??????? | | ?????# ### #????# # #?# ## ???????? | | ?????# ! #????# ## < #????????? | | ?????#!% #????# # #?????????? | | ?????#########?#### #?????????? | | ???????????????# = @ d %#?????????? | | ???????????????# ! d #?????????? | | ???????????????# ## ##% r #????????? | | ???###????####?# ## ##??? ?????? | | ??## #??## ### ### ##??????? ?????? | | ??# ### #?## #??????????? ????????? | | ??# [ #??## ##????????????????????? | | ??# #####???####?????????????????????? | | ??# #????????????????????????????????? | | ??# !##????????????????????????????????? | | ??# #?????????????????????????????????? | | ??## ##???????? ???????????????????????? | | ???# ##????? ??????????????????????? | | ???# ! #### #????????????????????????? | | ???## #?????????????????????????? | | ????## ##?????????????????????????? | | ?????## ##??????????????????????????? | | ??????# ##???????????????????????????? | | ?????# #####????????????????????????????? | | ?????# ##????????????????????????????????? | | ?????## ##?????????????????????????????????? | | ??????## ##??????????????????????????????????? | | ???????#####???????????????????????????????????? | | ???????????????????????????????????????????????? | | ???????????????????????????????????????????????? | +----------------------------------------------------+ Best States ------------- Heat Dissipation 39 Energy Generation 10 Energy Capacity 125 Matter Stores 300 Matter Capacity 300 Sight Range 16 Terrain Scan Range 16 Terrain Scan Density 10 Core Shielding 20 Evasion (%) 40 Recoil Reduction 2 Item Schematics ----------------- None Robot Schematics ------------------ None Fabricated ------------ Nothing Repaired ---------- Lgt. Treads | 30% | -10/Materials Lgt. Treads | 36% | -10/Materials Alien Tech Used ----------------- None Achievements -------------- None Challenges ------------ None Game ------ Seed FusionNetworkShovel Manual? 0 Play Time 00:19:45 Cumulative 890.0 hours Start 2025.06.09 @ 21:18:57 End 2025.06.09 @ 21:37:14 Sessions 1 Manual Loads 0 Difficulty Rogue Special Mode None Game No. 480 Rogue 480 Adventurer 0 Explorer 0 Win Type - Total 22 Types 10/3/3/0/1/1/2/2/0/0 Lore% 82 Gallery% 85 Achievement% 83 Wizard Run 0 Options --------- Layout 0 ASCII 0 Keyboard 0 Movement Numpad Keybinds 0 Fullscreen 2 Font 24/Smallcaps Map View 76x50 Zoom Use 0% Tactical HUD 1 Map Filters NONE Filters NONE Steam 1 RUN: e0aae30c-76ec-41ac-8efd-c01cda699042